Workbook

Sheet Growth, NW & ROA
A2: Relationship Between Growth, Capital & ROA
G4: What If… | H4: What If…
A5: Assets ($000s) | B5: 100000 | G5: Growth% | H5: ROA%
A6: Capital ($000s) | B6: 10000 | G6: 0.05 | H6: 0.01
B9: Growth | C9: Assets | D9: Net Inc | G9: Capital | H9: ROA
A11: Base | C11: =B5 -> 100000 | G11: =B6/C11 -> 0.1
A12: Yr 1 | B12: =G6 -> 0.05 | C12: =C11*(1+B12) -> 105000 | D12: =((C11+C12)/2)*$H12 -> 1025 | G12: =M12/C12 -> 0.105 | H12: =H6 -> 0.01 | M12: =D12+B6 -> 11025
A13: Yr 2 | B13: =B12 -> 0.05 | C13: =C12*(1+$B13) -> 110250 | D13: =((C12+C13)/2)*$H13 -> 1076.25 | G13: =M13/C13 -> 0.1097619048 | H13: =H12 -> 0.01 | M13: =D13+M12 -> 12101.25
A14: Yr 3 | B14: =B13 -> 0.05 | C14: =C13*(1+$B14) -> 115762.5 | D14: =((C13+C14)/2)*$H14 -> 1130.0625 | G14: =M14/C14 -> 0.1142970522 | H14: =H13 -> 0.01 | M14: =D14+M13 -> 13231.3125
A15: Yr 4 | B15: =B14 -> 0.05 | C15: =C14*(1+$B15) -> 121550.625 | D15: =((C14+C15)/2)*$H15 -> 1186.565625 | G15: =M15/C15 -> 0.1186162401 | H15: =H14 -> 0.01 | M15: =D15+M14 -> 14417.87812
A18: Note: Feel free to manually override growth and ROA percentages by individual year. To reset all four years, input the desired ratios in cells G6:H6 and click the Set All 4 Years the Same button.
